Workbook

Sheet Bắt đầu
B1: GIỚI THIỆU VỀ MẪU NÀY
B2: Tạo Kế hoạch Tài chính Khởi nghiệp Kinh doanh bằng mẫu này.
B3: Xem tổng quan về kế hoạch tài chính trong trang tính Tổng quan.
B4: Sử dụng Mẫu Chi phí Khởi nghiệp và trang tính Mẫu P&L để theo dõi Chi phí Khởi nghiệp và Lãi & Lỗ.
B5: Các trang tính Ví dụ về Chi phí Khởi nghiệp và Ví dụ về P&L chứa dữ liệu mẫu trong bảng.
B6: Lưu ý:
B7: Hướng dẫn bổ sung đã được cung cấp ở cột A ở tất cả các trang tính. Văn bản này đã được ẩn một cách chủ ý. Để loại bỏ văn bản, chọn cột A, rồi chọn XÓA. Để bỏ ẩn văn bản, chọn cột A, rồi thay đổi màu phông chữ.
B8: Để tìm hiểu thêm về các bảng, hãy nhấn SHIFT rồi nhấn F10 trong một bảng, chọn tùy chọn BẢNG, rồi chọn VĂN BẢN THAY THẾ.

Sheet Tổng quan
B1: KẾ HOẠCH TÀI CHÍNH KHỞI NGHIỆP KINH DOANH
B2: Việc tạo kế hoạch tài chính là điểm bắt đầu của tất cả các kế hoạch kinh doanh. Sau khi đã xác định được sản phẩm, thị trường mục tiêu và khách hàng mục tiêu, cùng với giá cả, bạn đã sẵn sàng để bắt đầu dự báo chi phí, doanh số và lợi nhuận. Các mục này cùng với giả định sẽ giúp bạn ước tính dự báo doanh số của mình. Khía cạnh còn lại của hoạt động kinh doanh sẽ là những chi phí bạn dự kiến phải trả. Việc luôn biết được thời điểm bạn có lợi nhuận rất quan trọng. Đồng thời, việc biết được chi phí bạn cần cấp vốn trước khi bán hàng cho khách hàng hay nhận được số tiền họ tạo ra khi bắt đầu doanh nghiệp cũng quan trọng không kém.
B3: Chi phí Khởi nghiệp Dự tính: Bảng trong tab tiếp theo, Mẫu Chi phí Khởi nghiệp, cung cấp mẫu trống kèm theo một số hướng dẫn để bắt đầu. Tab tiếp theo, Ví dụ về Chi phí Khởi nghiệp, hiển thị mẫu các mục chi phí một lần và đang diễn ra mà bạn có thể cần để bắt đầu kinh doanh. Nhiều doanh nghiệp được thanh toán bằng thẻ tín dụng theo thời gian và không nhận được tiền mặt ngay lập tức. Điều quan trọng là phải ước tính thời điểm tiền mặt sẽ bắt đầu chảy vào công ty bằng cách giả định số tháng của các mục định kỳ, ngoài chi phí một lần, mà bạn sẽ phải cấp vốn cho các khoản tiết kiệm hoặc một khoản đầu tư ban đầu.
B4: Mô hình Lãi và Lỗ Dự tính: Trong tab, nhãn Mẫu P&L, bạn sẽ tìm thấy một mẫu trống để thực hiện Dự báo Doanh số và Mô hình Lãi và Lỗ. Tab tiếp theo, Ví dụ về P&L, hiển thị mẫu các dự báo mà một doanh nghiệp nhỏ đang dự báo cho 12 tháng hoạt động đầu tiên của họ. Phần trên cùng của bảng trong mỗi mô hình hiển thị doanh số dự tính và lợi nhuận gộp. Đây là nơi tuyệt vời để bắt đầu tạo dự báo doanh số của bạn. Mục tiếp theo, bên dưới, sẽ chia mục các chi phí định kỳ mà bạn đang dự tính cho cùng một tháng. Các chi phí này phải nhất quán với chi phí khởi nghiệp ước tính mà bạn đã hoàn thành trong mục trước đó. Ở cuối mô hình này, bạn sẽ bắt đầu thấy thời điểm bạn có lợi nhuận và các mục chi phí nào tác động nhiều nhất đến lợi nhuận của bạn.
B5: Theo dõi giả định mà bạn đưa ra để ước tính Doanh thu và Chi phí Hàng hóa Đã bán. Đối với các doanh nghiệp chưa bắt đầu hoạt động, bạn nên hiểu cách ước tính các giá trị này cho sản phẩm hoặc dịch vụ của mình. Dưới đây là một số hướng dẫn ước tính:
B6: Doanh thu: Bắt đầu bằng việc xác định từ thị trường mục tiêu của bạn (nhóm khách hàng, doanh nghiệp hoặc người tiêu dùng tiềm năng), bao nhiêu trong số này sẽ là mục tiêu trong năm đầu tiên. Bạn dự kiến chốt đơn bao nhiêu phần trăm trong số này? Giao dịch trung bình để họ mua sản phẩm hoặc dịch vụ của bạn là gì? Bạn có thể thực hiện bao nhiêu giao dịch trong tháng đầu tiên, tháng thứ hai, v.v? Bạn có thể muốn bắt đầu với một số trong tháng đầu tiên và tăng số đó theo tỷ lệ phần trăm, giả sử là 10%. Ví dụ: nếu bạn bán dịch vụ vệ sinh cho các doanh nghiệp nhỏ trong thị trấn và có 500 doanh nghiệp mà bạn cho rằng sẽ cần dịch vụ. Nếu hợp đồng trung bình là 250 USD/tháng thì bạn cần ước tính số lượng doanh nghiệp có thể ký hợp đồng mỗi tháng cho năm đầu tiên.
B7: Giá vốn hàng bán (COGS): Giá trị này sẽ được tính toán cho các sản phẩm và một số dịch vụ. Giá này đã bao gồm chi phí sản xuất sản phẩm. Ví dụ: nếu bạn bán quần áo, COGS sẽ là giá mà bạn đã trả để mua quần áo từ nhà sản xuất. Nếu bạn tự sản xuất các sản phẩm đó thì đây sẽ là chi phí cho vật liệu và nhân công cần thiết để tạo ra chúng. Đối với dịch vụ, đây sẽ là chi phí nhân công trực tiếp cho một giờ làm việc có thể tính phí. Tất cả mọi thứ dưới Lợi nhuận gộp trên P&L đều là chi phí cố định hoặc chi phí vận hành cho toàn bộ doanh nghiệp, chẳng hạn như tiền thuê nhà hoặc cước điện thoại hay thậm chí là tiếp thị.

Sheet Mẫu Chi phí khởi nghiệp
B1: CHI PHÍ KHỞI NGHIỆP
B2: Your Coffee Shop | C2: =TODAY() -> 2022-01-17
B4: CÁC MỤC CHI PHÍ | C4: THÁNG | D4: CHI PHÍ/THÁNG | E4: CHI PHÍ MỘT LẦN | F4: TỔNG CHI PHÍ
B5: Quảng cáo/Tiếp thị | F5: =(C5*D5)+IF(E5>0,E5,0) -> 0 ₫
B6: Lương nhân viên | F6: =(C6*D6)+IF(E6>0,E6,0) -> 0 ₫
B7: Thuế tiền lương và Phúc lợi của Nhân viên | F7: 0 ₫
B8: Các khoản thanh toán thuê/cho thuê/điện nước | F8: 0 ₫
B9: Dịch vụ Bưu chính/Vận chuyển | F9: 0 ₫
B10: NGÂN SÁCH KHỞI NGHIỆP ƯỚC TÍNH | F10: =SUBTOTAL(109,Khởi_nghiệp[TỔNG CHI PHÍ]) -> 0

Sheet Ví dụ về chi phí khởi nghiệp
B1: CHI PHÍ KHỞI NGHIỆP
B2: ='Mẫu Chi phí khởi nghiệp'!B2 -> Your Coffee Shop | C2: =TODAY() -> 2022-01-17
B4: CÁC MỤC CHI PHÍ | C4: THÁNG | D4: CHI PHÍ/THÁNG | E4: CHI PHÍ MỘT LẦN | F4: TỔNG CHI PHÍ
B5: Quảng cáo/Tiếp thị | C5: 3 | D5: 300 ₫ | E5: 2,000 ₫ | F5: =(C5*D5)+IF(E5>0,E5,0) -> 2,900 ₫
B6: Lương nhân viên | C6: 4 | D6: 3,500 ₫ | E6: 2 ₫ | F6: =(C6*D6)+IF(E6>0,E6,0) -> 14,002 ₫
B7: Thuế tiền lương và Phúc lợi của Nhân viên | C7: 4 | D7: 500 ₫ | E7: 2,000 ₫ | F7: 4,000 ₫
B8: Các khoản thanh toán thuê/cho thuê/điện nước | C8: 4 | D8: 750 ₫ | E8: 3,000 ₫ | F8: 6,000 ₫
B9: Dịch vụ Bưu chính/Vận chuyển | C9: 1 | D9: 25 ₫ | E9: 25 ₫ | F9: 50 ₫
B10: NGÂN SÁCH KHỞI NGHIỆP ƯỚC TÍNH | F10: =SUM(F6:F9) -> 24,052 ₫

Sheet Mẫu P&L
B1: CHI PHÍ KHỞI NGHIỆP
B2: ='Mẫu Chi phí khởi nghiệp'!B2 -> Your Coffee Shop | C2: =TODAY() -> 2022-01-17
B4: DOANH THU | C4: THG1 | D4: THG2 | E4: THG3 | F4: THG4 | G4: THG5 | H4: THG6 | I4: THG7 | J4: THG8 | K4: THG9 | L4: THG10 | M4: THG11 | N4: THG12 | O4: ĐẦU NĂM ĐẾN NAY
B5: Doanh số Sản phẩm Ước tính | C5: 0 ₫ | D5: 0 ₫ | E5: 0 ₫ | F5: 0 ₫ | G5: 0 ₫ | H5: 0 ₫ | I5: 0 ₫ | J5: 0 ₫ | K5: 0 ₫ | L5: 0 ₫ | M5: 0 ₫ | N5: 0 ₫ | O5: =SUM(C5:N5) -> 0 ₫
B6: Lợi nhuận bán hàng và Chiết khấu ít hơn | C6: 0 ₫ | D6: 0 ₫ | E6: 0 ₫ | F6: 0 ₫ | G6: 0 ₫ | H6: 0 ₫ | I6: 0 ₫ | J6: 0 ₫ | K6: 0 ₫ | L6: 0 ₫ | M6: 0 ₫ | N6: 0 ₫ | O6: =SUM(C6:N6) -> 0 ₫
B7: Doanh thu dịch vụ | C7: 0 ₫ | D7: 0 ₫ | E7: 0 ₫ | F7: 0 ₫ | G7: 0 ₫ | H7: 0 ₫ | I7: 0 ₫ | J7: 0 ₫ | K7: 0 ₫ | L7: 0 ₫ | M7: 0 ₫ | N7: 0 ₫ | O7: 0 ₫
B8: Doanh thu khác | C8: 0 ₫ | D8: 0 ₫ | E8: 0 ₫ | F8: 0 ₫ | G8: 0 ₫ | H8: 0 ₫ | I8: 0 ₫ | J8: 0 ₫ | K8: 0 ₫ | L8: 0 ₫ | M8: 0 ₫ | N8: 0 ₫ | O8: 0 ₫
B9: Doanh số thuần | C9: =SUBTOTAL(109,Doanh_thu_mẫu[THG1]) -> 0 ₫ | D9: =SUBTOTAL(109,Doanh_thu_mẫu[THG2]) -> 0 ₫ | E9: =SUBTOTAL(109,Doanh_thu_mẫu[THG3]) -> 0 ₫ | F9: =SUBTOTAL(109,Doanh_thu_mẫu[THG4]) -> 0 ₫ | G9: =SUBTOTAL(109,Doanh_thu_mẫu[THG5]) -> 0 ₫ | H9: =SUBTOTAL(109,Doanh_thu_mẫu[THG6]) -> 0 ₫ | I9: =SUBTOTAL(109,Doanh_thu_mẫu[THG7]) -> 0 ₫ | J9: =SUBTOTAL(109,Doanh_thu_mẫu[THG8]) -> 0 ₫ | K9: =SUBTOTAL(109,Doanh_thu_mẫu[THG9]) -> 0 ₫ | L9: =SUBTOTAL(109,Doanh_thu_mẫu[THG10]) -> 0 ₫ | M9: =SUBTOTAL(109,Doanh_thu_mẫu[THG11]) -> 0 ₫ | N9: =SUBTOTAL(109,Doanh_thu_mẫu[THG12]) -> 0 ₫ | O9: =SUM(Doanh_thu_mẫu[[#Totals],[THG1]:[THG12]]) -> 0 ₫
B10: Giá vốn hàng bán | C10: =C5*0.4 -> 0 ₫ | D10: 0 ₫ | E10: 0 ₫ | F10: 0 ₫ | G10: 0 ₫ | H10: 0 ₫ | I10: 0 ₫ | J10: 0 ₫ | K10: 0 ₫ | L10: 0 ₫ | M10: 0 ₫ | N10: 0 ₫ | O10: 0 ₫
B11: Lợi nhuận gộp | C11: =IFERROR(Doanh_thu_mẫu[[#Totals],[THG1]]-C10,"") -> 0 ₫ | D11: =IFERROR(Doanh_thu_mẫu[[#Totals],[THG2]]-D10,"") -> 0 ₫ | E11: =IFERROR(Doanh_thu_mẫu[[#Totals],[THG3]]-E10,"") -> 0 ₫ | F11: =IFERROR(Doanh_thu_mẫu[[#Totals],[THG4]]-F10,"") -> 0 ₫ | G11: =IFERROR(Doanh_thu_mẫu[[#Totals],[THG5]]-G10,"") -> 0 ₫ | H11: =IFERROR(Doanh_thu_mẫu[[#Totals],[THG6]]-H10,"") -> 0 ₫ | I11: =IFERROR(Doanh_thu_mẫu[[#Totals],[THG7]]-I10,"") -> 0 ₫ | J11: =IFERROR(Doanh_thu_mẫu[[#Totals],[THG8]]-J10,"") -> 0 ₫ | K11: =IFERROR(Doanh_thu_mẫu[[#Totals],[THG9]]-K10,"") -> 0 ₫ | L11: =IFERROR(Doanh_thu_mẫu[[#Totals],[THG10]]-L10,"") -> 0 ₫ | M11: =IFERROR(Doanh_thu_mẫu[[#Totals],[THG11]]-M10,"") -> 0 ₫ | N11: =IFERROR(Doanh_thu_mẫu[[#Totals],[THG12]]-N10,"") -> 0 ₫ | O11: 0 ₫
B13: CHI PHÍ | C13: THG1 | D13: THG2 | E13: THG3 | F13: THG4 | G13: THG5 | H13: THG6 | I13: THG7 | J13: THG8 | K13: THG9 | L13: THG10 | M13: THG11 | N13: THG12 | O13: ĐẦU NĂM ĐẾN NAY
B14: Tiền lương và Tiền công | C14: 0 ₫ | D14: 0 ₫ | E14: 0 ₫ | F14: 0 ₫ | G14: 0 ₫ | H14: 0 ₫ | I14: 0 ₫ | J14: 0 ₫ | K14: 0 ₫ | L14: 0 ₫ | M14: 0 ₫ | N14: 0 ₫ | O14: =SUM(C14:N14) -> 0 ₫
B15: Tiếp thị/Quảng cáo | C15: 0 ₫ | D15: 0 ₫ | E15: 0 ₫ | F15: 0 ₫ | G15: 0 ₫ | H15: 0 ₫ | I15: 0 ₫ | J15: 0 ₫ | K15: 0 ₫ | L15: 0 ₫ | M15: 0 ₫ | N15: 0 ₫ | O15: =SUM(C15:N15) -> 0 ₫
B16: Hoa hồng doanh số | C16: 0 ₫ | D16: 0 ₫ | E16: 0 ₫ | F16: 0 ₫ | G16: 0 ₫ | H16: 0 ₫ | I16: 0 ₫ | J16: 0 ₫ | K16: 0 ₫ | L16: 0 ₫ | M16: 0 ₫ | N16: 0 ₫ | O16: 0 ₫
B17: Tiền thuê | C17: 0 ₫ | D17: 0 ₫ | E17: 0 ₫ | F17: 0 ₫ | G17: 0 ₫ | H17: 0 ₫ | I17: 0 ₫ | J17: 0 ₫ | K17: 0 ₫ | L17: 0 ₫ | M17: 0 ₫ | N17: 0 ₫ | O17: 0 ₫
B18: Khác 1 | C18: 0 ₫ | D18: 0 ₫ | E18: 0 ₫ | F18: 0 ₫ | G18: 0 ₫ | H18: 0 ₫ | I18: 0 ₫ | J18: 0 ₫ | K18: 0 ₫ | L18: 0 ₫ | M18: 0 ₫ | N18: 0 ₫ | O18: 0 ₫
B19: Tổng chi phí | C19: =IF(SUM(C14:C18)=0,"",SUM(C14:C18)) ->  | O19: =SUM(Chi_phí_mẫu[[#Totals],[THG1]:[THG12]]) -> 0 ₫
B20: Thu nhập trước thuế | C20: =IFERROR('Mẫu P&L'!$C$11-Chi_phí_mẫu[[#Totals],[THG1]],"") ->  | D20: =IFERROR('Mẫu P&L'!$C$11-Chi_phí_mẫu[[#Totals],[THG2]],"") ->  | E20: =IFERROR('Mẫu P&L'!$C$11-Chi_phí_mẫu[[#Totals],[THG3]],"") ->  | F20: =IFERROR('Mẫu P&L'!$C$11-Chi_phí_mẫu[[#Totals],[THG4]],"") ->  | G20: =IFERROR('Mẫu P&L'!$C$11-Chi_phí_mẫu[[#Totals],[THG5]],"") ->  | H20: =IFERROR('Mẫu P&L'!$C$11-Chi_phí_mẫu[[#Totals],[THG6]],"") ->  | I20: =IFERROR('Mẫu P&L'!$C$11-Chi_phí_mẫu[[#Totals],[THG7]],"") ->  | J20: =IFERROR('Mẫu P&L'!$C$11-Chi_phí_mẫu[[#Totals],[THG8]],"") ->  | K20: =IFERROR('Mẫu P&L'!$C$11-Chi_phí_mẫu[[#Totals],[THG9]],"") ->  | L20: =IFERROR('Mẫu P&L'!$C$11-Chi_phí_mẫu[[#Totals],[THG10]],"") ->  | M20: =IFERROR('Mẫu P&L'!$C$11-Chi_phí_mẫu[[#Totals],[THG11]],"") ->  | N20: =IFERROR('Mẫu P&L'!$C$11-Chi_phí_mẫu[[#Totals],[THG12]],"") ->  | O20: 0 ₫
B21: Chi phí thuế thu nhập | C21: =IFERROR(C20*0.15," ") ->  | D21: =IFERROR(D20*0.15," ") ->  | E21: =IFERROR(E20*0.15," ") ->  | O21: =SUM('Mẫu P&L'!$C$21:$N$21) -> 0 ₫
B23: THU NHẬP THỰC | C23: =IFERROR(C20-'Mẫu P&L'!$C$21,"") ->  | D23: =IFERROR(D20-'Mẫu P&L'!$D$21,"") ->  | E23: =IFERROR(E20-'Mẫu P&L'!$E$21,"") ->  | F23: =IFERROR(F20-'Mẫu P&L'!$F$21,"") ->  | G23: =IFERROR(G20-'Mẫu P&L'!$G$21,"") ->  | H23: =IFERROR(H20-'Mẫu P&L'!$H$21,"") ->  | I23: =IFERROR(I20-'Mẫu P&L'!$I$21,"") ->  | J23: =IFERROR(J20-'Mẫu P&L'!$J$21,"") ->  | K23: =IFERROR(K20-'Mẫu P&L'!$K$21,"") ->  | L23: =IFERROR(L20-'Mẫu P&L'!$L$21,"") ->  | M23: =IFERROR(M20-'Mẫu P&L'!$M$21,"") ->  | N23: =IFERROR(N20-'Mẫu P&L'!$N$21,"") ->  | O23: =IFERROR(O20-'Mẫu P&L'!$O$21,"") -> 0 ₫

Sheet Ví dụ về P&L
B1: CHI PHÍ KHỞI NGHIỆP
B2: ='Mẫu Chi phí khởi nghiệp'!B2 -> Your Coffee Shop | C2: =TODAY() -> 2022-01-17
B4: DOANH THU | C4: THG1 | D4: THG2 | E4: THG3 | F4: THG4 | G4: THG5 | H4: THG6 | I4: THG7 | J4: THG8 | K4: THG9 | L4: THG10 | M4: THG11 | N4: THG12 | O4: ĐẦU NĂM ĐẾN NAY
B5: Doanh số Sản phẩm Ước tính | C5: 5,000 ₫ | D5: 13,000 ₫ | E5: 16,000 ₫ | F5: 7,000 ₫ | G5: 14,500 ₫ | H5: 16,400 ₫ | I5: 22,500 ₫ | J5: 23,125 ₫ | K5: 24,549 ₫ | L5: 22,000 ₫ | M5: 25,000 ₫ | N5: 27,349 ₫ | O5: =SUM(C5:N5) -> 216,423 ₫
B6: Lợi nhuận bán hàng và Chiết khấu ít hơn | C6: 0 ₫ | D6: -350 ₫ | E6: 0 ₫ | F6: -206 ₫ | G6: -234 ₫ | H6: 0 ₫ | I6: 0 ₫ | J6: -280 ₫ | K6: -1,200 ₫ | L6: -1,600 ₫ | M6: 0 ₫ | N6: -2,400 ₫ | O6: =SUM(C6:N6) -> -6,270 ₫
B7: Doanh thu dịch vụ | C7: 0 ₫ | D7: 0 ₫ | E7: 0 ₫ | F7: 0 ₫ | G7: 0 ₫ | H7: 250 ₫ | I7: 350 ₫ | J7: 100 ₫ | K7: 0 ₫ | L7: 0 ₫ | M7: 1,245 ₫ | N7: 1,360 ₫ | O7: 3,305 ₫
B8: Doanh thu khác | C8: 0 ₫ | D8: 0 ₫ | E8: 0 ₫ | F8: 0 ₫ | G8: 0 ₫ | H8: 0 ₫ | I8: 0 ₫ | J8: 1,500 ₫ | K8: 0 ₫ | L8: 0 ₫ | M8: 0 ₫ | N8: 0 ₫ | O8: 1,500 ₫
B9: Doanh số thuần | C9: =SUBTOTAL(109,Doanh_thu_thực_tế[THG1]) -> 5,000 ₫ | D9: =SUBTOTAL(109,Doanh_thu_thực_tế[THG2]) -> 12,650 ₫ | E9: =SUBTOTAL(109,Doanh_thu_thực_tế[THG3]) -> 16,000 ₫ | F9: =SUBTOTAL(109,Doanh_thu_thực_tế[THG4]) -> 6,794 ₫ | G9: =SUBTOTAL(109,Doanh_thu_thực_tế[THG5]) -> 14,266 ₫ | H9: =SUBTOTAL(109,Doanh_thu_thực_tế[THG6]) -> 16,650 ₫ | I9: =SUBTOTAL(109,Doanh_thu_thực_tế[THG7]) -> 22,850 ₫ | J9: =SUBTOTAL(109,Doanh_thu_thực_tế[THG8]) -> 24,445 ₫ | K9: =SUBTOTAL(109,Doanh_thu_thực_tế[THG9]) -> 23,349 ₫ | L9: =SUBTOTAL(109,Doanh_thu_thực_tế[THG10]) -> 20,400 ₫ | M9: =SUBTOTAL(109,Doanh_thu_thực_tế[THG11]) -> 26,245 ₫ | N9: =SUBTOTAL(109,Doanh_thu_thực_tế[THG12]) -> 26,309 ₫ | O9: =SUM(Doanh_thu_thực_tế[[#Totals],[THG1]:[THG12]]) -> 214,958 ₫
B10: Giá vốn hàng bán | C10: =C5*0.4 -> 2,000 ₫ | D10: 5,200 ₫ | E10: 6,400 ₫ | F10: 2,800 ₫ | G10: 5,800 ₫ | H10: 6,560 ₫ | I10: 9,000 ₫ | J10: 9,250 ₫ | K10: 9,820 ₫ | L10: 8,800 ₫ | M10: 10,000 ₫ | N10: 10,940 ₫ | O10: 86,569 ₫
B11: Lợi nhuận gộp | C11: =IFERROR(Doanh_thu_thực_tế[[#Totals],[THG1]]-C10,"") -> 3,000 ₫ | D11: =IFERROR(Doanh_thu_thực_tế[[#Totals],[THG2]]-D10,"") -> 7,450 ₫ | E11: =IFERROR(Doanh_thu_thực_tế[[#Totals],[THG3]]-E10,"") -> 9,600 ₫ | F11: =IFERROR(Doanh_thu_thực_tế[[#Totals],[THG4]]-F10,"") -> 3,994 ₫ | G11: =IFERROR(Doanh_thu_thực_tế[[#Totals],[THG5]]-G10,"") -> 8,466 ₫ | H11: =IFERROR(Doanh_thu_thực_tế[[#Totals],[THG6]]-H10,"") -> 10,090 ₫ | I11: =IFERROR(Doanh_thu_thực_tế[[#Totals],[THG7]]-I10,"") -> 13,850 ₫ | J11: =IFERROR(Doanh_thu_thực_tế[[#Totals],[THG8]]-J10,"") -> 15,195 ₫ | K11: =IFERROR(Doanh_thu_thực_tế[[#Totals],[THG9]]-K10,"") -> 13,529 ₫ | L11: =IFERROR(Doanh_thu_thực_tế[[#Totals],[THG10]]-L10,"") -> 11,600 ₫ | M11: =IFERROR(Doanh_thu_thực_tế[[#Totals],[THG11]]-M10,"") -> 16,245 ₫ | N11: =IFERROR(Doanh_thu_thực_tế[[#Totals],[THG12]]-N10,"") -> 15,369 ₫ | O11: 128,389 ₫
B13: CHI PHÍ | C13: THG1 | D13: THG2 | E13: THG3 | F13: THG4 | G13: THG5 | H13: THG6 | I13: THG7 | J13: THG8 | K13: THG9 | L13: THG10 | M13: THG11 | N13: THG12 | O13: ĐẦU NĂM ĐẾN NAY
B14: Tiền lương và Tiền công | C14: 2,500 ₫ | D14: 2,500 ₫ | E14: 3,500 ₫ | F14: 5,000 ₫ | G14: 5,000 ₫ | H14: 5,000 ₫ | I14: 8,000 ₫ | J14: 9,000 ₫ | K14: 9,000 ₫ | L14: 9,000 ₫ | M14: 9,000 ₫ | N14: 9,000 ₫ | O14: =SUM(C14:N14) -> 76,500 ₫
B15: Tiếp thị/Quảng cáo | C15: 400 ₫ | D15: 450 ₫ | E15: 450 ₫ | F15: 450 ₫ | G15: 900 ₫ | H15: 900 ₫ | I15: 900 ₫ | J15: 900 ₫ | K15: 900 ₫ | L15: 900 ₫ | M15: 1,200 ₫ | N15: 1,200 ₫ | O15: =SUM(C15:N15) -> 9,550 ₫
B16: Hoa hồng doanh số | C16: 250 ₫ | D16: 650 ₫ | E16: 800 ₫ | F16: 350 ₫ | G16: 725 ₫ | H16: 820 ₫ | I16: 1,125 ₫ | J16: 1,156 ₫ | K16: 1,227 ₫ | L16: 1,100 ₫ | M16: 1,250 ₫ | N16: 1,367 ₫ | O16: 10,821 ₫
B17: Tiền thuê | C17: 1,250 ₫ | D17: 1,250 ₫ | E17: 1,250 ₫ | F17: 1,250 ₫ | G17: 1,250 ₫ | H17: 1,250 ₫ | I17: 1,250 ₫ | J17: 1,250 ₫ | K17: 1,250 ₫ | L17: 1,250 ₫ | M17: 1,250 ₫ | N17: 1,250 ₫ | O17: 15,000 ₫
B18: Tổng chi phí | C18: =IF(SUM(C14:C17)=0,"",SUM(C14:C17)) -> 4,400 ₫ | D18: 4,850 ₫ | E18: 6,000 ₫ | F18: 7,050 ₫ | G18: 7,875 ₫ | H18: 7,970 ₫ | I18: 11,275 ₫ | J18: 12,306 ₫ | K18: 12,377 ₫ | L18: 12,250 ₫ | M18: 12,700 ₫ | N18: 12,817 ₫ | O18: =SUM(Chi_phí_thực_tế[[#Totals],[THG1]:[THG12]]) -> 111,871 ₫
B19: Thu nhập trước thuế | C19: =IFERROR('Ví dụ về P&L'!$C$11-Chi_phí_thực_tế[[#Totals],[THG1]],"") -> -1,400 ₫ | D19: =IFERROR('Ví dụ về P&L'!$D$11-Chi_phí_thực_tế[[#Totals],[THG2]],"") -> 2,600 ₫ | E19: =IFERROR('Ví dụ về P&L'!$E$11-Chi_phí_thực_tế[[#Totals],[THG3]],"") -> 3,600 ₫ | F19: =IFERROR('Ví dụ về P&L'!$F$11-Chi_phí_thực_tế[[#Totals],[THG4]],"") -> -3,056 ₫ | G19: =IFERROR('Ví dụ về P&L'!$G$11-Chi_phí_thực_tế[[#Totals],[THG5]],"") -> 591 ₫ | H19: =IFERROR('Ví dụ về P&L'!$H$11-Chi_phí_thực_tế[[#Totals],[THG6]],"") -> 2,120 ₫ | I19: =IFERROR('Ví dụ về P&L'!$I$11-Chi_phí_thực_tế[[#Totals],[THG7]],"") -> 2,575 ₫ | J19: =IFERROR('Ví dụ về P&L'!$J$11-Chi_phí_thực_tế[[#Totals],[THG8]],"") -> 2,889 ₫ | K19: =IFERROR('Ví dụ về P&L'!$K$11-Chi_phí_thực_tế[[#Totals],[THG9]],"") -> 1,152 ₫ | L19: =IFERROR('Ví dụ về P&L'!$L$11-Chi_phí_thực_tế[[#Totals],[THG10]],"") -> -650 ₫ | M19: =IFERROR('Ví dụ về P&L'!$M$11-Chi_phí_thực_tế[[#Totals],[THG11]],"") -> 3,545 ₫ | N19: =IFERROR('Ví dụ về P&L'!$N$11-Chi_phí_thực_tế[[#Totals],[THG12]],"") -> 2,552 ₫ | O19: =SUM(C19:N19) -> 16,518 ₫
B20: Chi phí thuế thu nhập | C20: =C19*0.15 -> -210 ₫ | D20: 390 ₫ | E20: =E19*0.15 -> 540 ₫ | F20: =F19*0.15 -> -458 ₫ | G20: =G19*0.15 -> 89 ₫ | H20: =H19*0.15 -> 318 ₫ | I20: =I19*0.15 -> 386 ₫ | J20: =J19*0.15 -> 433 ₫ | K20: =K19*0.15 -> 173 ₫ | L20: =L19*0.15 -> -98 ₫ | M20: =M19*0.15 -> 532 ₫ | N20: =N19*0.15 -> 383 ₫ | O20: =SUM('Ví dụ về P&L'!$C$20:$N$20) -> 2,478 ₫
B22: THU NHẬP THỰC | C22: =IFERROR(C19-'Ví dụ về P&L'!$C$20," ") -> -1,190 ₫ | D22: =IFERROR(D19-'Ví dụ về P&L'!$D$20," ") -> 2,210 ₫ | E22: =IFERROR(E19-'Ví dụ về P&L'!$E$20,"") -> 3,060 ₫ | F22: =IFERROR(F19-'Ví dụ về P&L'!$F$20,"") -> -2,598 ₫ | G22: =IFERROR(G19-'Ví dụ về P&L'!$G$20,"") -> 502 ₫ | H22: =IFERROR(H19-'Ví dụ về P&L'!$H$20,"") -> 1,802 ₫ | I22: =IFERROR(I19-'Ví dụ về P&L'!$I$20,"") -> 2,189 ₫ | J22: =IFERROR(J19-'Ví dụ về P&L'!$J$20,"") -> 2,455 ₫ | K22: =IFERROR(K19-'Ví dụ về P&L'!$K$20,"") -> 979 ₫ | L22: =IFERROR(L19-'Ví dụ về P&L'!$L$20,"") -> -553 ₫ | M22: =IFERROR(M19-'Ví dụ về P&L'!$M$20,"") -> 3,013 ₫ | N22: =IFERROR(N19-'Ví dụ về P&L'!$N$20,"") -> 2,169 ₫ | O22: =IFERROR(O19-'Ví dụ về P&L'!$O$20,"") -> 14,040 ₫
